[Event "8th Amsterdam Summer Open-A 2018"]
[Site "Amsterdam"]
[Date "2018.07.12"]
[Round "6"]
[White "Prior, Stephen C V"]
[Black "Kokje, Joris"]
[Result "0-1"]
[ECO "A15"]
[WhiteElo "2025"]
[BlackElo "2242"]
[Annotator "NA"]
[PlyCount "130"]
[EventDate "2018.07.07"]
[EventType "swiss"]
[EventCountry "NED"]
[SourceTitle "playchess.com"]
[Source "ChessBase"]
[SourceQuality "1"]
[TimeControl "40/5400+30:1800+30"]

1. Nf3 {[%emt 0:00:00]} d6 {[%emt 0:02:03]} 2. b3 {[%emt 0:00:12]} e5 {[%emt 0:02:03]} 3. Bb2 {[%emt 0:02:08]} Nf6 {[%emt 0:04:49]} 4. g3 {[%emt 0:03:18]} g6 {[%emt 0:01:50]} (4... e4 $5 {[%cal Re4f3]} 5. Nd4 d5 $15) 5. Bg2 {[%emt 0:00:13]} Bg7 {[%emt 0:00:24]} 6. c4 {[%emt 0:00:55]} O-O {[%emt 0:00:39]} 7. O-O {[%emt 0:00:21]} Nc6 {[%emt 0:01:31]} 8. d3 {[%emt 0:03:35] LiveBook: 85 Games} Nd7 {[%emt 0:08:42] A15: English Opening: 1...Nf6} (8... Nh5 9. Nc3 f5 10. Rc1 g5 11. Nd2 g4 12. c5 Be6 13. cxd6 cxd6 14. Nd5 f4 15. Bh1 Nf6 16. Nxf6+ Rxf6 17. d4 exd4 {½-½ (63) Bacrot,E (2697)-Adhiban,B (2674) Berlin 2015}) 9. Nc3 {[%emt 0:03:49]} f5 {[%emt 0:00:09]} 10. Nd2 {[%emt 0:01:44]} g5 {[%emt 0:05:12]} 11. Nd5 $146 {[%emt 0:02:39]} ({Predecessor:} 11. a3 Kh8 12. e3 g4 13. Nd5 Ne7 14. Nxe7 Qxe7 15. f4 Nc5 16. Qe2 {0-1 (33) Kappes,D-Gollasch,T Mannheim 1987}) 11... Ne7 {[%emt 0:03:35]} 12. Qc2 {[%emt 0:08:52]} Ng6 {[%emt 0:00:27]} 13. Rac1 {[%emt 0:03:14]} c6 {[%emt 0:01:07]} 14. Nc3 {[%emt 0:00:25]} Nf6 {[%emt 0:01:58]} 15. b4 {[%emt 0:01:20]} h5 {[%emt 0:04:38]} 16. b5 {[%emt 0:01:42]} c5 $11 {[%emt 0:01:16]} 17. Nd5 {[%emt 0:01:39]} Ng4 {[%emt 0:05:23]} 18. a4 {[%emt 0:03:37]} h4 {[%emt 0:05:29]} 19. a5 {[%emt 0:01:36]} Rb8 {[%emt 0:02:21]} 20. b6 {[%emt 0:01:36]} a6 {[%emt 0:00:41]} 21. Nc7 {[%emt 0:08:39]} Qf6 {[%emt 0:03:12]} 22. Nf3 {[%emt 0:05:53]} Nh6 {[%emt 0:03:03]} 23. e3 {[%emt 0:08:00]} g4 {[%emt 0:02:11]} 24. Nd2 {[%emt 0:01:45]} Qg5 {[%emt 0:03:31]} 25. Rce1 {[%emt 0:05:07]} Qh5 {[%emt 0:02:19]} 26. d4 {[%emt 0:03:06]} cxd4 {[%emt 0:01:50]} 27. exd4 {[%emt 0:00:30]} f4 {[%emt 0:03:20]} 28. Bd5+ {[%emt 0:01:17]} Kh8 {[%emt 0:00:43]} 29. Be6 {[%emt 0:03:38]} Nf7 {[%emt 0:06:13]} 30. Ne4 {[%emt 0:02:34]} Bxe6 {[%emt 0:04:24]} 31. Nxe6 {[%emt 0:00:09]} Rfe8 {[%emt 0:00:39]} 32. Nxg7 {[%emt 0:00:55]} Kxg7 {[%emt 0:00:05]} 33. d5 {[%emt 0:08:19]} Rbc8 {[%emt 0:05:26]} 34. c5 {[%emt 0:01:40]} Rxc5 {[%emt 0:00:22]} 35. Nxc5 {[%emt 0:00:11]} dxc5 {[%emt 0:00:07]} 36. gxf4 {[%emt 0:01:19]} Nxf4 {[%emt 0:00:24]} 37. d6 {[%emt 0:01:54]} Nxd6 {[%emt 0:04:31]} 38. Qxc5 {[%emt 0:00:09]} Nf7 {[%emt 0:03:51]} 39. Qe3 {[%emt 0:07:15]} Qf5 {[%emt 0:06:00]} 40. Qe4 {[%emt 0:00:45]} Qxe4 {[%emt 0:02:26]} 41. Rxe4 {[%emt 0:30:07]} Kg6 {[%emt 0:02:14]} 42. Rc4 {[%emt 0:00:00]} Ng5 {[%emt 0:07:14]} 43. Rc7 {[%emt 0:00:00]} Rd8 {[%emt 0:01:17]} 44. Bc1 {[%emt 0:00:00]} Ngh3+ {[%emt 0:00:45]} 45. Kh1 {[%emt 0:00:00]} Nxf2+ {[%emt 0:00:20]} 46. Kg1 {[%emt 0:00:00]} N2h3+ {[%emt 0:02:20]} 47. Kh1 {[%emt 0:00:00]} Rd5 {[%emt 0:09:02]} 48. Bxf4 {[%emt 0:00:00]} exf4 {[%emt 0:00:12]} 49. Rxb7 {[%emt 0:00:00]} Rd2 {[%emt 0:01:30]} 50. Rc1 {[%emt 0:00:00]} g3 {[%emt 0:00:21]} 51. hxg3 {[%emt 0:00:00]} hxg3 {[%emt 0:00:10]} 52. Rc6+ {[%emt 0:00:00]} Kf5 {[%emt 0:00:23]} 53. Rf7+ {[%emt 0:00:00]} Ke4 {[%emt 0:02:05]} 54. Re7+ {[%emt 0:00:00]} Kf3 {[%emt 0:00:43]} 55. Rc3+ {[%emt 0:00:00]} Kf2 {[%emt 0:00:32]} 56. Rc1 {[%emt 0:00:00]} g2+ {[%emt 0:01:54]} 57. Kh2 {[%emt 0:00:00]} g1=Q+ {[%emt 0:00:12]} 58. Rxg1 {[%emt 0:00:00]} Nxg1 {[%emt 0:00:08]} 59. Rc7 {[%emt 0:02:12]} Kf1+ {[%emt 0:02:42]} 60. Kh1 {[%emt 0:00:08]} Nf3 {[%emt 0:00:22]} 61. Rc1+ {[%emt 0:00:08]} Kf2 {[%emt 0:00:15]} 62. b7 {[%emt 0:05:20]} Rb2 {[%emt 0:00:07]} 63. b8=Q {[%emt 0:02:50]} Rxb8 {[%emt 0:00:12]} 64. Rc2+ {[%emt 0:00:13]} Ke3 {[%emt 0:00:16]} 65. Rc6 {[%emt 0:01:01]} Rh8+ {[%emt 0:00:17]} 0-1

[Event "8th Amsterdam Summer Open-A 2018"]
[Site "Amsterdam"]
[Date "2018.07.12"]
[Round "6"]
[White "Romkes, Abel"]
[Black "Mijnheer, Peter"]
[Result "1-0"]
[ECO "C68"]
[WhiteElo "2018"]
[BlackElo "2106"]
[Annotator "NA"]
[PlyCount "119"]
[EventDate "2018.07.07"]
[EventType "swiss"]
[EventCountry "NED"]
[SourceTitle "playchess.com"]
[Source "ChessBase"]
[SourceQuality "1"]
[TimeControl "40/5400+30:1800+30"]

1. e4 {[%emt 0:00:00]} e5 {[%emt 0:00:00]} 2. Nf3 {[%emt 0:00:00]} Nc6 {[%emt 0:00:00]} 3. Bb5 {[%emt 0:00:00]} a6 {[%emt 0:00:00]} 4. Bxc6 {[%emt 0:00:00]} dxc6 {[%emt 0:00:00]} 5. O-O {[%emt 0:00:02]} Bd6 {[%emt 0:02:14]} 6. d4 {[%emt 0:00:12]} exd4 {[%emt 0:00:12]} 7. Qxd4 {[%emt 0:00:08]} f6 {[%emt 0:00:17]} 8. Be3 {[%emt 0:00:18] LiveBook: 234 Games} Be6 {[%emt 0:00:52]} 9. Nbd2 {[%emt 0:00:21]} Ne7 {[%emt 0:00:29]} 10. Qc3 {[%emt 0:00:15]} O-O {[%emt 0:02:49]} 11. Nc4 {[%emt 0:05:47]} Ng6 {[%emt 0:01:52]} 12. Rad1 {[%emt 0:02:04]} Qe7 {[%emt 0:03:53]} 13. a3 {[%emt 0:00:57]} Kh8 $14 {[%emt 0:29:16]} 14. Nfd2 {[%emt 0:17:53]} Rae8 {[%emt 0:12:15]} 15. f4 {[%emt 0:06:34]} Bc5 {[%emt 0:18:02]} 16. Rde1 {[%emt 0:06:43]} f5 {[%emt 0:05:31]} 17. e5 {[%emt 0:02:59]} Rd8 {[%emt 0:04:14]} 18. b4 {[%emt 0:04:18]} Bxe3+ {[%emt 0:01:41]} 19. Nxe3 {[%emt 0:01:09]} Rd7 {[%emt 0:02:42]} 20. Rd1 {[%emt 0:01:31]} Rfd8 {[%emt 0:01:53]} 21. g3 {[%emt 0:00:47]} Qf7 {[%emt 0:02:23]} 22. Nf3 {[%emt 0:05:08]} h6 {[%emt 0:03:09]} 23. Rxd7 {[%emt 0:07:08]} Rxd7 {[%emt 0:00:24]} 24. Rd1 {[%emt 0:00:12]} Rxd1+ {[%emt 0:00:25]} 25. Nxd1 {[%emt 0:00:07]} Qd7 {[%emt 0:01:10]} 26. Ne3 {[%emt 0:04:27]} Ne7 {[%emt 0:00:26]} 27. Qd4 {[%emt 0:01:07]} Nd5 {[%emt 0:01:09]} 28. Kf2 {[%emt 0:03:07]} Qf7 {[%emt 0:01:06]} 29. Qd3 {[%emt 0:05:43]} Kg8 {[%emt 0:01:53]} 30. Nd4 {[%emt 0:02:20]} g6 {[%emt 0:00:04]} 31. Nb3 {[%emt 0:05:00]} Nxe3 {[%emt 0:00:27]} 32. Kxe3 {[%emt 0:00:15]} Bxb3 {[%emt 0:00:40]} 33. Qxb3 {[%emt 0:06:45]} Qxb3+ {[%emt 0:00:56]} 34. cxb3 {[%emt 0:00:08]} Kf7 {[%emt 0:00:13]} 35. Kd4 {[%emt 0:00:07]} b6 {[%emt 0:01:32]} 36. a4 {[%emt 0:00:15]} Ke6 {[%emt 0:00:17]} 37. Kc4 {[%emt 0:00:55]} g5 {[%emt 0:01:22]} 38. b5 {[%emt 0:00:23]} axb5+ {[%emt 0:01:02]} 39. axb5 {[%emt 0:00:08]} c5 {[%emt 0:00:29]} 40. h3 {[%emt 0:05:00]} g4 {[%emt 0:00:02]} 41. h4 {[%emt 0:39:33]} h5 {[%emt 0:30:54]} 42. Kc3 {[%emt 0:00:00]} Kd5 {[%emt 0:00:00]} 43. Kd3 {[%emt 0:00:00]} c6 {[%emt 0:00:00]} 44. bxc6 {[%emt 0:00:00]} Kxc6 {[%emt 0:00:00]} 45. b4 {[%emt 0:00:00]} cxb4 {[%emt 0:00:00]} 46. Kc4 {[%emt 0:00:00]} b3 {[%emt 0:00:00]} 47. Kxb3 {[%emt 0:00:00]} Kd5 {[%emt 0:00:00]} 48. Kb4 {[%emt 0:00:00]} Ke4 {[%emt 0:00:00]} 49. e6 {[%emt 0:00:00]} Kf3 {[%emt 0:00:00]} 50. e7 {[%emt 0:00:00]} Kxg3 {[%emt 0:00:00]} 51. e8=Q {[%emt 0:00:00]} Kxh4 {[%emt 0:00:00]} 52. Kc3 {[%emt 0:00:00]} Kg3 {[%emt 0:00:00]} 53. Qxh5 {[%emt 0:00:00]} Kxf4 {[%emt 0:00:00]} 54. Kd3 {[%emt 0:00:00]} b5 {[%emt 0:01:20]} 55. Ke2 {[%emt 0:00:00]} b4 {[%emt 0:00:20]} 56. Qh2+ {[%emt 0:00:00]} Ke4 {[%emt 0:01:37]} 57. Qg2+ {[%emt 0:00:00]} Kf4 {[%emt 0:00:28]} 58. Qf2+ {[%emt 0:00:00]} Kg5 {[%emt 0:00:16]} 59. Qe3+ {[%emt 0:00:00]} Kh5 {[%emt 0:00:37]} 60. Qf4 {[%emt 0:00:00]} 1-0